[Event "44th Chess Olympiad Open 2022"]
[Site "Chennai"]
[Date "2022.08.05"]
[Round "7.2"]
[White "Shankland, Sam"]
[Black "Hovhannisyan, Robert"]
[Result "0-1"]
[ECO "D12"]
[WhiteElo "2720"]
[BlackElo "2591"]
[Annotator "TA"]
[PlyCount "180"]
[EventDate "2022.07.29"]
[EventType "team-tourn"]
[EventCountry "IND"]
[SourceTitle "playchess.com"]
[Source "ChessBase"]
[SourceQuality "1"]
[WhiteTeam "United States"]
[BlackTeam "Armenia"]
[WhiteTeamCountry "USA"]
[BlackTeamCountry "ARM"]
[TimeControl "40/5400+30:1800+30"]

{[%evp 17,180,8,11,0,4,0,12,-7,-15,-6,15,10,32,0,0,0,22,0,20,16,23,0,0,0,-6,-17,0,-23,0,0,0,0,0,0,0,0,-9,-34,-46,-76,-80,-82,-89,-95,-93,-311,-312,-315,-352,-337,-337,-317,-310,-373,-370,-370,-366,-354,-354,-350,-344,-360,0,-285,0,-360,-348,-351,-356,-350,-339,-338,-267,-320,-321,-300,-256,-311,-309,-299,-286,-353,-246,-279,-229,-242,-233,-407,-246,-238,-227,-233,-233,-217,0,-231,-218,-218,-214,-204,-204,-224,-219,-257,-250,-257,-247,-282,-247,-262,0,-248,-230,-227,-191,-191,-185,-185,0,-220,-149,-149,-149,-141,-66,-67,-78,-78,-105,-134,-104,-233,-233,-440,-440,-395,-395,-395,-380,-763,-748,-714,-705,-958,-299,-266,-151,-293,-123,-124,-124,-124,-37,-17,-24,-90,-90,-90,-90,-90,-90,-95,-97,-98,-8]} 1. d4 {[%emt 0:00:11]} d5 {[%emt 0:00:12]} 2. c4 {[%emt 0:00:06]} c6 {[%emt 0:00:05]} 3. Nf3 {[%emt 0:00:05]} Nf6 {[%emt 0:00:06]} 4. e3 {[%emt 0:00:05]} Bf5 {[%emt 0:00:22]} 5. Nc3 {[%emt 0:00:07]} e6 {[%emt 0:00:06]} 6. Nh4 {[%emt 0:00:12]} Bg6 {[%emt 0:00:14]} 7. Bd2 {[%emt 0:05:20]} Nbd7 {[%emt 0:02:14]} 8. Nxg6 {[%emt 0:04:07]} hxg6 {[%emt 0:00:07]} 9. Qb3 {[%emt 0:00:23]} Qc7 {[%emt 0:00:42]} 10. h3 {[%emt 0:01:41]} Be7 {[%emt 0:06:06]} 11. Rc1 {[%emt 0:03:28]} Nb6 {[%emt 0:00:21]} 12. cxd5 {[%emt 0:01:12]} (12. c5 $5 {[%cal Rc5b6]} Nbd7 13. Bd3 $11) 12... exd5 {[%emt 0:00:15]} 13. Bd3 {[%emt 0:01:11]} O-O {[%emt 0:03:46]} 14. O-O {[%emt 0:02:35]} a5 {[%emt 0:05:15]} 15. a3 {[%emt 0:03:59]} Rfe8 {[%emt 0:08:52]} 16. Rfe1 {[%emt 0:10:01]} Bf8 {[%emt 0:04:29]} 17. f3 {[%emt 0:05:58]} a4 {[%emt 0:03:35]} 18. Qc2 {[%emt 0:02:15]} Qd7 {[%emt 0:08:09]} 19. Kh1 {[%emt 0:09:57]} Bd6 {[%emt 0:04:05]} 20. g4 {[%emt 0:04:07]} Bc7 {[%emt 0:02:24]} 21. Re2 {[%emt 0:02:24]} g5 {[%emt 0:10:23]} 22. Rf1 {[%emt 0:12:52]} Re7 {[%emt 0:08:04]} (22... Qd6 $5 {[%cal Rd6g3]}) 23. e4 {[%emt 0:04:17]} dxe4 {[%emt 0:02:48]} 24. Nxe4 {[%emt 0:00:15]} Nxe4 {[%emt 0:01:44]} 25. Bxe4 {[%emt 0:01:40]} Bf4 {[%emt 0:03:45]} 26. Rfe1 {[%emt 0:04:33]} Rae8 {[%emt 0:02:36]} 27. Ba5 {[%emt 0:03:45]} Nd5 {[%emt 0:03:05]} 28. Bf5 {[%emt 0:07:17]} Qd6 $1 {[%emt 0:02:22]} 29. Rxe7 {[%emt 0:01:25]} Rxe7 {[%emt 0:00:31]} 30. Rxe7 {[%emt 0:02:10]} Nxe7 {[%emt 0:00:52]} 31. Bb4 $2 {[%emt 0:03:23]} (31. Bh7+ $17 Kh8 32. Be4) 31... Qh6 $1 $19 {[%emt 0:03:33]} 32. Kg2 {[%emt 0:02:16]} (32. Bxe7 Qxh3+ 33. Kg1 Be3+) 32... Nd5 {[%emt 0:00:43]} 33. Qe4 {[%emt 0:00:43]} Ne3+ {[%emt 0:00:33]} 34. Kf2 {[%emt 0:01:34]} Nxf5 {[%emt 0:00:30]} 35. gxf5 {[%emt 0:00:17]} Qxh3 {[%emt 0:05:54]} 36. Bc3 {[%emt 0:00:16]} Qh2+ {[%emt 0:02:10]} 37. Ke1 {[%emt 0:00:20]} Qg1+ {[%emt 0:01:01]} 38. Ke2 {[%emt 0:00:00]} Qg2+ {[%emt 0:00:09]} 39. Ke1 {[%emt 0:00:50]} Qg1+ {[%emt 0:04:04]} 40. Ke2 {[%emt 0:00:02]} Qg2+ {[%emt 0:00:06]} 41. Ke1 $1 {[%emt 0:30:03]} Bg3+ {[%emt 0:32:40]} 42. Kd1 {[%emt 0:00:01]} Qf1+ {[%emt 0:00:30]} 43. Kc2 {[%emt 0:00:23]} Bf4 {[%emt 0:00:20]} 44. Be1 {[%emt 0:02:04]} Qc4+ {[%emt 0:01:37]} 45. Bc3 {[%emt 0:00:15]} Qb3+ {[%emt 0:00:00]} 46. Kb1 {[%emt 0:00:00]} Qd5 {[%emt 0:00:00]} 47. Kc2 {[%emt 0:00:00]} Kh7 {[%emt 0:00:00]} 48. Qd3 {[%emt 0:00:00]} f6 {[%emt 0:00:00]} 49. Kd1 {[%emt 0:00:00]} Kg8 {[%emt 0:00:00]} 50. Ke2 {[%emt 0:00:00]} Kf7 {[%emt 0:00:00]} 51. Kf2 {[%emt 0:00:00]} b5 {[%emt 0:00:00]} 52. Kg1 $2 {[%emt 0:00:00]} (52. Be1 {keeps fighting.}) 52... Bd6 {[%emt 0:00:00]} 53. Kf2 {[%emt 0:00:00]} Bc7 {[%emt 0:00:00]} 54. Kg1 {[%emt 0:00:00]} Kg8 {[%emt 0:00:00]} 55. Qe3 {[%emt 0:00:00]} Kf7 {[%emt 0:00:00]} (55... Qxf5 56. Qe8+ Kh7 57. Qh5+ Kg8 58. Qe8+ Kh7 59. Qh5+ Kg8 60. Qe8+ $11) 56. Qd3 $1 {[%emt 0:00:00]} Bb6 {[%emt 0:00:00]} 57. Kf2 {[%emt 0:00:00]} Ba7 {[%emt 0:00:58]} 58. Kg3 {[%emt 0:00:00]} Bb8+ {[%emt 0:01:54]} 59. Kf2 {[%emt 0:00:00]} Bd6 {[%emt 0:00:05]} 60. Kg1 {[%emt 0:00:00]} Ke8 {[%emt 0:00:27]} 61. Kf2 {[%emt 0:00:00]} Kd7 {[%emt 0:00:06]} 62. Kg1 {[%emt 0:00:00]} Kc7 {[%emt 0:00:43]} 63. Qe4 {[%emt 0:00:00]} Kd7 {[%emt 0:03:37]} 64. Qd3 $1 {[%emt 0:00:15]} Bf4 {[%emt 0:00:04]} 65. Kf2 {[%emt 0:00:24]} Ke8 {[%emt 0:00:18]} 66. Qe2+ {[%emt 0:00:40]} Kf7 {[%emt 0:00:06]} 67. Qd3 {[%emt 0:00:06]} Bd6 {[%emt 0:00:23]} 68. Kg1 $1 {[%emt 0:00:27]} g6 {[%emt 0:01:14]} 69. fxg6+ {[%emt 0:00:04]} Kg7 {[%emt 0:00:02]} 70. Qe2 {[%emt 0:01:24]} Kxg6 {[%emt 0:00:26]} (70... b4 $1 $17 {[%cal Rb4c3]} 71. axb4 Bxb4 $1 {[%mdl 512]}) 71. Qe8+ $15 {[%emt 0:00:07]} Kg7 {[%emt 0:00:19]} 72. Kg2 {[%emt 0:01:27]} Bf8 {[%emt 0:01:41]} 73. Kf2 {[%emt 0:01:57]} f5 {[%emt 0:00:56]} 74. Qe3 {[%emt 0:01:08] [#]} (74. Kg1 $17) 74... Kh6 $1 $19 {[%emt 0:00:56]} 75. Bd2 $2 {[%emt 0:04:09]} (75. Qe8 {might work better.} Bg7 76. Kg3) 75... f4 $19 {[%emt 0:00:01]} 76. Qd3 {[%emt 0:00:05]} Bg7 {[%emt 0:00:30]} 77. Bc3 {[%emt 0:00:01]} Bf6 {[%emt 0:00:12]} 78. Ke1 $2 {[%emt 0:02:48]} (78. Qd2 c5 79. dxc5 Qxc5+ 80. Kf1 Bxc3 81. bxc3 Qxa3 82. Qh2+ Kg7 83. Qd2) 78... g4 $19 {[%emt 0:01:13]} 79. fxg4 {[%emt 0:00:25]} Qh1+ {[%emt 0:00:10]} 80. Kd2 {[%emt 0:00:39]} Qg2+ $2 {[%emt 0:00:05]} (80... f3 81. Kc2 Qg2+ 82. Bd2+ Bg5) 81. Kc1 $19 {[%emt 0:00:13]} Qxg4 {[%emt 0:01:15]} (81... Qg1+ $19 82. Kc2 Qxg4) 82. Bd2 {[%emt 0:01:07] [#]} (82. Qe4 $17 {is the only way for White.}) 82... Kg5 {[%emt 0:00:40]} (82... Qg1+ $1 $19 {is more deadly.} 83. Kc2 Qg2) 83. Qe4 $17 {[%emt 0:00:31]} Qg1+ {[%emt 0:00:57]} 84. Kc2 {[%emt 0:00:01]} Qf2 {[%emt 0:00:37]} ({Better is} 84... Qxd4 $17 85. Bxf4+ Kg4 86. Qxd4 Bxd4) 85. Qxc6 $15 {[%emt 0:00:39]} Qxd4 {[%emt 0:00:30]} 86. Qxb5+ {[%emt 0:00:08]} (86. Qg2+ $1 $11 {remains equal.} Kf5 87. Qh3+ Kg6 88. Qg2+ Bg5 89. Qf3 (89. Qc6+ Kf5 $17)) 86... Kg4 $17 {[%emt 0:00:27]} 87. Bxf4 {[%emt 0:01:32]} Qe4+ {[%emt 0:01:03]} ({Avoid the trap} 87... Kxf4 $2 88. Qf1+ Kg5 89. Qg2+ Kh5 90. Qh2+ Kg6 91. Qg2+ Kf7 92. Qb7+ Kg8 93. Qa8+ Kh7 94. Qh1+ Kg8 95. Qg2+ Kh7 96. Qh1+ Kg8 97. Qg2+ Kh8 98. Qh3+ Kg8 99. Qg2+ $19) 88. Qd3 {[%emt 0:01:06]} Qc6+ {[%emt 0:00:20]} ({Much weaker is} 88... Kxf4 $6 89. Qxe4+ Kxe4 90. b3 $11) 89. Kb1 {[%emt 0:00:49]} Kxf4 {[%emt 0:00:02]} 90. b3 {[%emt 0:00:57]} Qg2 {[%emt 0:01:14]} (90... axb3 $17 91. Qxb3 Kg5) 0-1

[Event "44th Chess Olympiad Open 2022"]
[Site "Chennai"]
[Date "2022.08.05"]
[Round "7.2"]
[White "Sargissian, Gabriel"]
[Black "Caruana, Fabiano"]
[Result "1-0"]
[ECO "E15"]
[WhiteElo "2698"]
[BlackElo "2783"]
[Annotator "TA"]
[PlyCount "113"]
[EventDate "2022.07.29"]
[EventType "team-tourn"]
[EventCountry "IND"]
[SourceTitle "playchess.com"]
[Source "ChessBase"]
[SourceQuality "1"]
[WhiteTeam "Armenia"]
[BlackTeam "United States"]
[WhiteTeamCountry "ARM"]
[BlackTeamCountry "USA"]
[TimeControl "40/5400+30:1800+30"]

{[%evp 19,113,7,9,15,20,12,11,10,8,13,16,12,18,26,29,27,23,6,47,17,33,24,35,24,30,0,0,0,0,0,0,0,11,-17,0,-14,0,-39,-33,-46,-32,-62,0,-14,11,9,8,9,115,52,97,107,368,370,348,302,413,367,381,277,277,277,277,277,277,163,163,163,163,163,284,284,284,284,284,284,632,654,619,594,489,456,1702,2322,1449,1398,825,702,29961,29961,29977,29978,29978,29979,29982,29983]} 1. d4 {[%emt 0:00:07]} Nf6 {[%emt 0:00:09]} 2. c4 {[%emt 0:00:14]} e6 {[%emt 0:00:04]} 3. Nf3 {[%emt 0:00:57]} b6 {[%emt 0:00:06]} 4. g3 {[%emt 0:01:21]} Ba6 {[%emt 0:00:12]} 5. b3 {[%emt 0:01:31]} Bb4+ {[%emt 0:00:06]} 6. Bd2 {[%emt 0:00:22]} Be7 {[%emt 0:00:07]} 7. Nc3 {[%emt 0:03:00]} d5 {[%emt 0:00:13]} 8. cxd5 {[%emt 0:00:31]} exd5 {[%emt 0:00:06]} 9. Bg2 {[%emt 0:00:58]} O-O {[%emt 0:00:06]} 10. O-O {[%emt 0:00:27]} Re8 {[%emt 0:00:11] 10...Nbd7 is setting a new trend.} 11. Ne5 {[%emt 0:04:45] E15: Queen's Indian: 4 g3 sidelines, 4 g3 Ba6 and 4 g3 Bb7 early deviations.} Bb7 {[%emt 0:00:24]} 12. Rc1 {[%emt 0:01:07]} Nbd7 {[%emt 0:00:13]} 13. Rc2 {[%emt 0:03:22] The position is equal.} Nf8 {[%emt 0:26:23]} 14. Bc1 {[%emt 0:00:21]} Ne6 {[%emt 0:00:21]} 15. Bb2 {[%emt 0:03:29]} a6 {[%emt 0:01:13]} 16. e3 {[%emt 0:00:49]} Bd6 {[%emt 0:05:51]} 17. Ne2 {[%emt 0:07:35] [#]} a5 $146 {[%emt 0:00:00]} ({Predecessor:} 17... Ne4 18. Nf4 Qe7 19. Nc6 Bxc6 20. Rxc6 Nxf4 21. exf4 Qd7 22. Rc2 a5 23. a4 b5 {½-½ (94) Barseghyan,A (2338)-Levin,E (2485) Cheliabinsk 2021}) 18. a4 {[%emt 0:12:13]} c5 {[%emt 0:09:46]} 19. Nf4 {[%emt 0:00:00]} Nxf4 {[%emt 0:02:02]} 20. exf4 {[%emt 0:00:00]} Ba6 {[%emt 0:04:56]} 21. Re1 {[%emt 0:02:07]} Rc8 {[%emt 0:00:11]} 22. g4 {[%emt 0:13:12]} cxd4 {[%emt 0:09:58] aiming for ...Bb4.} 23. Rxc8 {[%emt 0:04:00]} Qxc8 {[%emt 0:01:16]} 24. Bxd4 {[%emt 0:11:59]} Bb4 {[%emt 0:07:35]} 25. Re3 {[%emt 0:00:15]} Ne4 {[%emt 0:00:41]} 26. Bb2 {[%emt 0:07:00]} (26. Bxb6 Nc3 27. Qa1 Re6 $17) (26. Bxe4 $2 dxe4 27. Bxb6 Re6 28. Qd8+ Qxd8 29. Bxd8 Rd6 $19) 26... Bb7 {[%emt 0:03:15]} 27. h3 {[%emt 0:00:58]} f6 {[%emt 0:06:04]} 28. Nf3 {[%emt 0:04:17]} (28. Nd3 $5 {[%cal Rd3b4]}) 28... Qc7 {[%emt 0:02:49]} 29. f5 {[%emt 0:00:07]} Qf4 {[%emt 0:00:27]} 30. Re2 $1 {[%emt 0:05:54]} Bc5 {[%emt 0:02:24]} (30... Rc8 $1 $15 {might be stronger.}) 31. Bd4 $11 {[%emt 0:00:29]} Rd8 {[%emt 0:07:02][%cal Oh7h5]} (31... Kf7 {is interesting.} 32. Bxc5 bxc5 33. Qd3 Qc1+) 32. Bxc5 {[%emt 0:01:25]} bxc5 {[%emt 0:03:09]} 33. Qe1 {[%emt 0:00:10] Prevents Nc3.} h5 {[%emt 0:02:16] [#]} (33... Qc7 $1 $11) 34. Qxa5 {[%emt 0:01:51]} (34. Nh4 $1 $16) 34... Rc8 {[%emt 0:01:28]} 35. Nh4 {[%emt 0:02:23][%cal Bf3h4,Bh4g6,Bg6e7][%mdl 32] Hoping for Ng6.} (35. gxh5 Kh7 $11) 35... Ra8 $2 {[%emt 0:02:58][%mdl 8192] [#] This move loses the game for Black.} (35... Qd6 $16 {was necessary.}) 36. Qe1 $1 $18 {[%emt 0:01:11]} (36. Qb6 Qc1+ 37. Kh2 Qf4+ 38. Kg1 Qc1+ 39. Kh2 Qf4+ 40. Kg1 $11) 36... Qc7 {[%emt 0:03:33]} (36... hxg4 $2 37. Ng6 Qd6 38. hxg4 $18 (38. Bxe4 dxe4 39. Rd2 Qb6 $16)) 37. Ng6 {[%emt 0:03:20] Strongly threatening f3.} (37. Bxe4 dxe4 38. Ng6 Kh7 $16) 37... c4 {[%emt 0:00:19]} 38. bxc4 {[%emt 0:00:28]} (38. Bxe4 dxe4 39. Rc2 Qb6 $16) 38... Qxc4 {[%emt 0:00:02]} 39. Rb2 {[%emt 0:02:56][%cal Be2b2,Bb2b4,Bb4c4][%mdl 32]} Bc6 {[%emt 0:00:53]} 40. Ne7+ {[%emt 0:01:01]} (40. gxh5 $6 Kh7 $16) 40... Kh7 {[%emt 0:00:46]} 41. Bxe4 {[%emt 0:04:27]} ({Less strong is} 41. gxh5 Qxa4 42. h6 (42. Nxc6 Qxc6 43. Bxe4 dxe4 $11) 42... Ra7 $16) 41... dxe4 {[%emt 0:00:04]} 42. Rb4 {[%emt 0:00:11]} ({And not} 42. gxh5 Rxa4 43. Nxc6 Qxc6 $11) 42... Qc5 {[%emt 0:00:22]} 43. Nxc6 {[%emt 0:00:16]} Qxc6 {[%emt 0:00:03]} 44. Qxe4 {[%emt 0:00:31][%mdl 4096] Endgame KQR-KQR} Qc1+ {[%emt 0:01:00]} (44... Qxe4 $142 45. Rxe4 Kh6) 45. Kg2 {[%emt 0:00:27]} Rd8 {[%emt 0:02:03]} 46. Rc4 {[%emt 0:03:43]} ({Much less strong is} 46. gxh5 $6 Rd1 $18) 46... Qd2 {[%emt 0:01:56]} 47. gxh5 {[%emt 0:03:52]} Rb8 $2 {[%emt 0:02:46]} (47... Qg5+ 48. Qg4 Rd5 49. Qxg5 fxg5) 48. Rd4 {[%emt 0:01:27]} Qc1 {[%emt 0:00:40]} 49. Qg4 {[%emt 0:01:03]} Qc6+ {[%emt 0:00:25]} 50. Kh2 {[%emt 0:00:47]} Qc2 {[%emt 0:00:21]} (50... Qc7+ $142 51. Qg3 Rc8 52. Qxc7 Rxc7) 51. Qg6+ {[%emt 0:02:42]} Kh8 {[%emt 0:00:05]} 52. Qg3 {[%emt 0:01:02] h6 would kill now.} Rg8 {[%emt 0:00:18]} 53. Qf4 {[%emt 0:01:29]} Kh7 {[%emt 0:00:37]} 54. Rd7 {[%emt 0:00:39] White mates.} Kh8 {[%emt 0:01:12]} 55. h6 {[%emt 0:02:24]} g5 {[%emt 0:00:05]} 56. fxg6 {[%emt 0:00:36]} Qxg6 {[%emt 0:00:12]} 57. Rg7 {[%emt 0:00:32] Weighted Error Value: White=0.10 (very precise) /Black=0.59} 1-0

[Event "44th Chess Olympiad Open 2022"]
[Site "Chennai"]
[Date "2022.08.05"]
[Round "7.2"]
[White "Ter-Sahakyan, Samvel"]
[Black "Dominguez Perez, Leinier"]
[Result "0-1"]
[ECO "B94"]
[WhiteElo "2625"]
[BlackElo "2754"]
[Annotator "TA"]
[PlyCount "95"]
[EventDate "2022.07.29"]
[EventType "team-tourn"]
[EventCountry "IND"]
[SourceTitle "playchess.com"]
[Source "ChessBase"]
[SourceQuality "1"]
[WhiteTeam "Armenia"]
[BlackTeam "United States"]
[WhiteTeamCountry "ARM"]
[BlackTeamCountry "USA"]
[TimeControl "40/5400+30:1800+30"]

{[%evp 11,95,13,18,8,14,18,17,20,19,18,11,15,27,23,16,22,0,14,31,0,0,0,0,5,20,-42,9,0,-9,-28,0,0,0,0,0,0,0,0,0,0,0,0,0,0,0,0,0,-27,12,10,17,-51,-58,-85,-105,-92,-109,-108,-89,-71,-60,-161,-119,-334,-276,-272,-307,-283,-289,-264,0,-154,-109,-106,33,-376,-340,-12831,-106,-638,-254,-12842,-178,-608,-116,-126]} 1. e4 {[%emt 0:00:06]} c5 {[%emt 0:00:06]} 2. Nf3 {[%emt 0:00:17]} d6 {[%emt 0:00:07]} 3. d4 {[%emt 0:02:10]} cxd4 {[%emt 0:00:08]} 4. Nxd4 {[%emt 0:00:03]} Nf6 {[%emt 0:00:08]} 5. Nc3 {[%emt 0:00:04]} a6 {[%emt 0:00:07]} 6. Bg5 {[%emt 0:05:42]} Nbd7 {[%emt 0:00:08]} 7. Qe2 {[%emt 0:03:51] B94: Sicilian Najdorf: 6 Bg5 Nbd7.} h6 {[%emt 0:00:58]} 8. Bh4 {[%emt 0:00:19]} g6 {[%emt 0:00:18]} 9. f4 {[%emt 0:09:45] Threatening e5. The position is equal.} e5 {[%emt 0:00:12]} 10. fxe5 {[%emt 0:01:31]} dxe5 {[%emt 0:00:07] [#]} 11. O-O-O $1 {[%emt 0:00:24][%cal Og2g4]} Qc7 {[%emt 0:00:16]} (11... exd4 12. e5 Bc5 13. exf6+ Kf8 14. Ne4 $18) 12. Nb3 {[%emt 0:01:01]} b5 {[%emt 0:00:21]} 13. Nd5 {[%emt 0:04:49] 13.Rxd7 is the fancy move.} Nxd5 {[%emt 0:00:13]} 14. exd5 {[%emt 0:00:02]} Bd6 {[%emt 0:00:24]} 15. Qd2 {[%emt 0:00:32]} f5 {[%emt 0:02:48]} 16. Kb1 {[%emt 0:03:52][%cal Oc2c4]} g5 {[%emt 0:04:39]} 17. Be1 {[%emt 0:07:04][%cal Og2g4]} Nf6 {[%emt 0:00:10] [#]} 18. Rc1 $146 {[%emt 0:10:04]} (18. g3 $11) ({Predecessor:} 18. h4 g4 19. h5 Ne4 20. Qc1 f4 21. Bd3 Bf5 22. Na5 O-O 23. c4 Rae8 24. Qc2 {0-1 (49) Pugh,J (2463)-Yeo,G (2454) ICCF email 2019}) 18... b4 {[%emt 0:39:26]} ({Black should play} 18... f4 $1 $15) 19. c4 {[%emt 0:08:20]} bxc3 $1 {[%emt 0:00:13]} 20. Qd1 {[%emt 0:00:07]} (20. Rxc3 Ne4 21. Rxc7 Nxd2+ 22. Bxd2 Bxc7 $17) 20... Qf7 {[%emt 0:12:46]} (20... O-O $5 {[%cal Rc7f7]}) 21. Rxc3 {[%emt 0:06:20]} Bb7 {[%emt 0:00:10]} ({Don't play} 21... Nxd5 22. Rc6 Ke7 23. Na5 $16) ({Much less strong is} 21... Qxd5 22. Rd3 Qe4 23. Nd2 $16) 22. Bc4 {[%emt 0:09:24]} O-O {[%emt 0:00:19]} (22... Bxd5 $2 23. Bxd5 Qxd5 24. Qxd5 Nxd5 25. Rd3 $18) (22... Nxd5 $2 23. Rd3 O-O-O 24. Bxd5 $18) 23. Na5 {[%emt 0:04:40]} Bxd5 {[%emt 0:22:22]} 24. Bxd5 {[%emt 0:00:16]} Nxd5 {[%emt 0:00:05]} (24... Qxd5 $2 25. Qxd5+ Nxd5 26. Rd3 $18) 25. Rd3 {[%emt 0:01:11]} Nb4 $36 {[%emt 0:00:12][%mdl 2048] White is under pressure.} 26. Bxb4 {[%emt 0:02:19]} Bxb4 {[%emt 0:00:05]} 27. Nc6 {[%emt 0:00:35][%csl LRb4,LRe5]} a5 {[%emt 0:00:39]} (27... e4 $2 28. Rd7 Qe6 29. Nxb4 $18) 28. Nxe5 {[%emt 0:07:42]} Qe6 {[%emt 0:00:10]} 29. Nf3 {[%emt 0:04:43]} Rab8 {[%emt 0:00:13]} 30. a3 $1 {[%emt 0:04:15]} Be7 {[%emt 0:01:48] ...Bf6 is the strong threat.} 31. Nd4 {[%emt 0:00:43]} (31. Re1 $11 Qb6 32. b4) 31... Qd5 $1 $15 {[%emt 0:07:03]} 32. Qf3 {[%emt 0:00:18] [#]} Qxf3 {[%emt 0:01:21]} 33. gxf3 {[%emt 0:00:07]} Bf6 {[%emt 0:00:18] Hoping for ...Rfd8.} 34. Rhd1 {[%emt 0:00:59]} Rb6 {[%emt 0:01:51]} 35. R1d2 {[%emt 0:02:30]} Rfb8 {[%emt 0:02:40] And now ...f4 would win.} 36. Kc1 {[%emt 0:01:18]} (36. a4 $1 $15) 36... f4 {[%emt 0:00:23]} 37. Kb1 $2 {[%emt 0:00:59]} (37. a4 $17 {might work better.}) 37... Rd6 {[%emt 0:03:06] Strongly threatening ...Rbd8.} 38. Nb3 {[%emt 0:00:34]} Rxd3 {[%emt 0:01:10]} 39. Rxd3 $19 {[%emt 0:00:03][%mdl 4096] Endgame KRB-KRN} a4 {[%emt 0:00:07]} 40. Nd2 {[%emt 0:00:46]} Rb5 {[%emt 0:00:40]} ({Not} 40... Bxb2 41. Kc2 $17) (40... Rxb2+ $19 41. Kc1 Ra2) 41. Kc1 $2 ({Better is} 41. b4 $11) 41... Rxb2 {[%emt 0:30:30] White must now prevent ...Ra2. Black is more active.} 42. Rd6 {[%emt 0:13:25]} Ra2 {[%emt 0:00:00]} 43. Rd3 $2 {[%emt 0:07:34][%mdl 8192]} (43. Rxf6 $14 {was forced to keep a grip.} Kg7 44. Ra6) 43... Bg7 {[%emt 0:00:00]} 44. Rd4 $2 {[%emt 0:01:05]} (44. Kb1 Ra1+ 45. Kc2) 44... Bf8 $2 {[%emt 0:00:00]} (44... Bxd4 $19 45. Nc4 Rxh2) 45. h4 $2 {[%emt 0:00:21][%mdl 8192]} (45. Rxa4 $17 Kf7 46. h4) 45... Rxa3 $2 {[%emt 0:00:00]} (45... gxh4 46. Rxf4 Bxa3+ 47. Kd1 Be7 48. Rg4+ Kf7 49. Rf4+ Ke8) 46. Rxf4 $2 {[%emt 0:00:16]} (46. hxg5 hxg5 47. Rd7) 46... gxh4 $2 {[%emt 0:00:00]} (46... gxf4 47. Ne4 Rxf3) 47. Kc2 $2 {[%emt 0:00:57]} (47. Rg4+ Kh7 48. Rxh4) 47... Ra1 $2 {[%emt 0:00:00]} (47... Be7 $19 {has better winning chances.} 48. Re4 Bf6) 48. Rxh4 {[%emt 0:00:04] Weighted Error Value: White=0.99/Black=0.81} 0-1

[Event "44th Chess Olympiad Open 2022"]
[Site "Chennai"]
[Date "2022.08.05"]
[Round "7.3"]
[White "Van Foreest, Jorden"]
[Black "Fressinet, Laurent"]
[Result "1/2-1/2"]
[ECO "C67"]
[WhiteElo "2678"]
[BlackElo "2631"]
[Annotator "TA"]
[PlyCount "67"]
[EventDate "2022.07.29"]
[EventType "team-tourn"]
[EventCountry "IND"]
[SourceTitle "playchess.com"]
[Source "ChessBase"]
[SourceQuality "1"]
[WhiteTeam "Netherlands"]
[BlackTeam "France"]
[WhiteTeamCountry "NED"]
[BlackTeamCountry "FRA"]
[TimeControl "40/5400+30:1800+30"]

{[%evp 9,67,24,24,0,0,0,0,-10,0,0,0,0,0,-2,22,9,8,10,11,15,5,10,16,11,40,36,34,-8,25,41,36,40,82,97,90,-21,-16,-16,-16,-42,-14,-56,-43,-50,-47,-51,-56,-34,20,-43,-43,-39,-42,-62,-55,-66,-56,-66,-41,-56]} 1. e4 {[%emt 0:00:04]} e5 {[%emt 0:00:05]} 2. Nf3 {[%emt 0:00:13]} Nc6 {[%emt 0:00:05]} 3. Bb5 {[%emt 0:00:12]} Nf6 {[%emt 0:00:06][%cal Bg8f6,Bf6e4,Be4d6][%mdl 32]} 4. O-O {[%emt 0:00:19]} Nxe4 {[%emt 0:00:06]} 5. Re1 {[%emt 0:00:16]} Nd6 {[%emt 0:00:04]} 6. a4 {[%emt 0:00:47] C67: Ruy Lopez: Berlin Defence: 4 0-0 Nxe4.} Be7 {[%emt 0:04:07]} 7. Nc3 {[%emt 0:00:54] Inhibits e4.} a6 {[%emt 0:04:39]} 8. Bf1 {[%emt 0:00:27] The position is equal.} e4 {[%emt 0:00:07]} 9. Nxe4 {[%emt 0:00:16]} Nxe4 {[%emt 0:00:03]} 10. Rxe4 {[%emt 0:00:14]} d5 {[%emt 0:00:05]} 11. Re1 {[%emt 0:00:15]} d4 {[%emt 0:00:07]} 12. Bd3 {[%emt 0:00:20]} O-O {[%emt 0:04:24]} 13. Be4 {[%emt 0:00:08]} Be6 {[%emt 0:08:32]} 14. d3 {[%emt 0:03:56]} Bd5 {[%emt 0:11:46]} 15. Bf4 {[%emt 0:00:52][%cal Of4c7]} Bxe4 {[%emt 0:01:44]} 16. Rxe4 {[%emt 0:03:59]} f5 {[%emt 0:05:12] [#]} 17. Re1 $146 {[%emt 0:00:36]} ({Predecessor:} 17. Re2 g5 18. Bd2 g4 19. Ne5 Nxe5 20. Rxe5 Bd6 21. Re2 Qf6 22. c3 Rae8 23. g3 dxc3 24. Bxc3 {½-½ (30) Karjakin,S (2748)-So,W (2754) Zagreb 2019}) 17... Bf6 {[%emt 0:09:18]} 18. Qb1 {[%emt 0:14:17]} Qd7 {[%emt 0:01:37]} (18... g5 $5 {[%cal Rg5f4]} 19. Qa2+ Kg7 $11) 19. b4 {[%emt 0:05:39]} b5 {[%emt 0:06:50]} 20. Qb3+ {[%emt 0:02:59]} Qf7 {[%emt 0:05:39] [#]} 21. Re6 $1 {[%emt 0:13:22]} Nd8 {[%emt 0:05:16] [#]} 22. Rxf6 {[%emt 0:00:18] White is much more active. The black rooks are badly placed.} gxf6 $11 {[%emt 0:00:11]} 23. Nxd4 {[%emt 0:00:12]} Qxb3 {[%emt 0:02:44]} 24. cxb3 {[%emt 0:00:05]} Re8 {[%emt 0:03:26]} 25. Nxf5 {[%emt 0:01:31]} (25. g3 $5 {[%cal Ra4b5]} bxa4 26. bxa4 $11) 25... Nc6 {[%emt 0:05:42]} 26. Bxc7 {[%emt 0:03:40]} Nxb4 {[%emt 0:01:33]} 27. d4 {[%emt 0:01:55]} Nc2 {[%emt 0:04:16]} 28. Rc1 {[%emt 0:01:45]} Re1+ {[%emt 0:02:09]} 29. Rxe1 {[%emt 0:00:06]} Nxe1 {[%emt 0:00:02] Black is slightly better.} 30. d5 {[%emt 0:02:35]} Nd3 {[%emt 0:02:08]} 31. g3 {[%emt 0:05:52]} bxa4 {[%emt 0:02:46]} 32. bxa4 {[%emt 0:00:06]} Kf7 {[%emt 0:00:29]} 33. Kg2 {[%emt 0:02:34]} Ke8 {[%emt 0:04:37][%mdl 1024] Black has compensation.} 34. d6 {[%emt 0:08:44] Weighted Error Value: White=0.14 (very precise) /Black=0.06 (flawless)} 1/2-1/2